Cogmind - Beta 17 @@@ ROGUE MODE // 2026.07.24 @ 18:19:00 Player: Crehl Result: Destroyed by as-46057 with Assembled Maul Performance ------------- Evolutions (0) 0 Regions Visited (2) 400 Robots Destroyed (20) 100 Value Destroyed (442) 442 Prototype IDs (0) 0 Alien Tech Used (0) 0 Bonus (0) 0 TOTAL SCORE: 942 Bonus ------- None Cogmind --------- Core Integrity 0/250 Matter 279/300 Energy 98/100 System Corruption 4% Temperature Cool (1) Movement Walking (190) Ox1 Location -10/Mines Parts ------- > --- POWER (1) -------- (None) > --- PROPULSION (2) --- Aluminum Leg > --- UTILITY (2) ------ Medium Storage Unit > --- WEAPON (2) ------- Subdweller Machine Gun > --- INVENTORY (10) --- Light Ion Engine Light Ion Engine Improved Heat Sink Small Storage Unit Large Storage Unit Large Storage Unit Improved Terrain Scanner Seismic Detector Mining Laser Peak State ------------ > --- POWER ------------ Ion Engine > --- PROPULSION ------- Light Treads Light Treads > --- UTILITY ---------- Small Storage Unit Improved Terrain Scanner > --- WEAPON ----------- Small Laser Small Laser > --- INVENTORY -------- Ion Engine Aluminum Leg Aluminum Leg Light Assault Rifle [Rating: 9] Favorites ----------- Power Ion Engine Engine Ion Engine Propulsion Light Treads Treads Light Treads Leg Aluminum Leg Utility Structural Scanner Device Structural Scanner Storage Large Storage Unit Weapon Small Laser Energy Gun Small Laser Ballistic Gun Light Assault Rifle Build | -11 -10 -10 ------- Run | Yrd Mat Min Slots Evolved . | . . . Power . | . . . Propulsion . | . . . Utility . | . . . Weapon . | . . . Parts Attached 16 | 8 5 3 Power 1 | 1 . . Engine 1 | 1 . . Core . | . . . Reactor . | . . . Propulsion 4 | 2 . 2 Treads 2 | 2 . . Leg 2 | . . 2 Wheel . | . . . Hover . | . . . Flight . | . . . Utility 6 | 2 3 1 Device 3 | 1 2 . Storage 3 | 1 1 1 Processor . | . . . Hackware . | . . . Protection . | . . . Artifact . | . . . Weapon 5 | 3 2 . Energy Gun 3 | 2 1 . Energy Cannon . | . . . Ballistic Gun 2 | 1 1 . Ballistic Cannon . | . . . Launcher . | . . . Special Weapon . | . . . Impact Weapon . | . . . Slashing Weapon . | . . . Piercing Weapon . | . . . Special Melee Weapon . | . . . Unidentified Prototypes . | . . . Parts Lost 5 | . 1 4 Power 1 | . . 1 Propulsion 2 | . 1 1 Utility 1 | . . 1 Weapon 1 | . . 1 Highest Loss Streak 4 | . 1 4 To Critical Strikes . | . . . Average Backups 9 | 3 11 11 Power 1 | . 1 2 Propulsion 1 | 1 2 . Utility 3 | . 4 6 Weapon 2 | . 2 2 Tool/Special . | . . . Unused Backups 6 | . 1 5 Power 3 | . 1 2 Propulsion . | . . . Utility 2 | . . 2 Weapon 1 | . . 1 Tool/Special . | . . . Average Slot Usage (%) 95 | . 97 75 Engine 13 | . 14 9 Treads 23 | . 25 4 Device 13 | . 14 9 Storage 14 | . 14 14 Energy Gun 20 | . 22 . Ballistic Gun 6 | . 5 23 Peak Build Rating 9 | 9 9 9 Average Rating 7 | 7 8 7 On Entrance 5 | . 9 8 Avg Prop Armor Cover (%) . | . . . Naked Turns . | . . . Heaviest Build 31 | 13 31 31 Greatest Support 40 | 40 40 20 Greatest Overweight (x) 1 | . 1 1 Average Overweight (x) . | . . . Largest Inventory Capacity 15 | 8 15 15 Average Capacity 11 | 7 12 11 Most Carried 14 | 7 14 14 Average Carried 9 | 3 11 10 Final Capacity 15 | 8 15 10 Final Carried 14 | 7 14 9 Class Distribution -------------------- 100% | Mutant Dominant Class ---------------- Mutant | -10/Materials Mutant | -10/Mines Resources | -11 -10 -10 ----------- Run | Yrd Mat Min Matter Collected 331 | 247 84 . Remotely . | . . . Salvage Created 530 | 65 457 8 Parts 36 | 13 23 . Haulers Intercepted . | . . . Recyclers Shooed 2 | . 2 . Parts Field Recycled . | . . . Retrieved Matter . | . . . Parts Self-Destructed . | . . . Prevented . | . . . Parts Restored . | . . . Kills | -11 -10 -10 ------- Run | Yrd Mat Min Combat Hostiles Destroyed 16 | . 15 1 Guns 16 | . 15 1 Classes Destroyed 6 | 1 4 1 Tunneler 4 | 4 . . Watcher 1 | . 1 . Swarmer 6 | . 6 . Grunt 8 | . 8 . Subdweller 1 | . 1 . Assembled 1 | . . 1 Best Kill Streak 4 | 2 4 1 Combat Bots Only 4 | . 4 1 Max Kills in Single Turn 1 | 1 1 1 Gunslinging . | . . . Exploded . | . . . Melee . | . . . Uniques/NPCs Destroyed . | . . . Combat | -11 -10 -10 -------- Run | Yrd Mat Min Hostile Shots Fired 98 | . 72 26 Missed 30 | . 20 10 Hits 68 | . 52 16 Melee 12 | . . 12 Projectile 56 | . 52 4 Damage Taken 993 | . 589 404 Core 257 | . 123 134 Absorbed by Shields . | . . . Core Remaining (%) 100 | 100 . . Volleys Fired 60 | 7 51 2 Largest 2 | 2 2 2 Hottest 90 | 80 90 50 Shots Fired 120 | 14 102 4 Gun 120 | 14 102 4 Cannon . | . . . Launcher . | . . . Special . | . . . Kinetic 16 | . 12 4 Thermal 104 | 14 90 . Explosive . | . . . Electromagnetic . | . . . Robot Hit Streak 16 | 3 16 2 Robot Miss Streak 4 | 4 3 1 Penetration Max . | . . . Secondary Targets . | . . . Shots Hit Robots 73 | 6 65 2 Core Hits 37 | 4 31 2 Critical Kills 1 | . 1 . Critical Parts Destroyed . | . . . Critical Strikes 4 | . 4 . Burn 3 | . 3 . Destroy 1 | . 1 . Melee Attacks . | . . . Impact . | . . . Slashing . | . . . Piercing . | . . . Sneak Attacks . | . . . Combat Hostiles . | . . . Follow-up Attacks . | . . . Damage Inflicted 954 | 67 825 62 Guns 927 | 67 800 60 Cannons . | . . . Explosions . | . . . Melee . | . . . Ramming 27 | . 25 2 Kinetic 179 | . 119 60 Thermal 748 | 67 681 . Explosive . | . . . Electromagnetic . | . . . Impact . | . . . Slashing . | . . . Piercing . | . . . Highest Corruption 4 | . . 4 Average Corruption 3 | . . 3 Corruption Purged . | . . . Corruption Blocked . | . . . Overload Shots . | . . . Overflow Damage . | . . . Projectiles . | . . . Explosions . | . . . Melee . | . . . Knockbacks . | . . . Impact . | . . . Kinetic . | . . . Secondary . | . . . Self-Inflicted Damage . | . . . Shots . | . . . Rammed 10 | . 10 . Targets Rammed 11 | . 10 1 Kicked 1 | . . 1 Crushed . | . . . Highest Temperature 342 | 54 342 10 Average Temperature 71 | 22 77 7 Received Heat Transfer 267 | . 267 . Effects 3 | . 3 . Interference 3 | . 3 . Siege Activations . | . . . Martial Activations . | . . . Shielding Activations . | . . . Robots Disrupted . | . . . Combat Hostiles . | . . . Robots Corrupted . | . . . Combat Hostiles . | . . . Parts Fried . | . . . Impact Corruptions . | . . . Robots Melted . | . . . Combat Hostiles . | . . . Parts Melted 6 | 1 5 . Heat Transferred 2099 | 150 1949 . Parts Sabotaged . | . . . Parts Stolen . | . . . Parts Stripped . | . . . Power Chain Reactions . | . . . Alert | -11 -10 -10 ------- Run | Yrd Mat Min Maximum Alert Level . | . . . Low Security (%) 100 | 100 100 100 Level 1 . | . . . Level 2 . | . . . Level 3 . | . . . Level 4 . | . . . Level 5 . | . . . High Security . | . . . Max Security . | . . . Peak Influence 129 | 5 129 39 Initial 39 | . . 39 Average 39 | 1 49 22 Influence Increases 411 | 20 391 . Destroy 0b10 Robot/C 280 | . 280 . Destroy 0b10 Robot/NC 25 | 20 5 . Destroy Leader 72 | . 72 . Successful Hack 4 | . 4 . Lose Combat Pursuer 30 | . 30 . Influence Decreases 411 | 20 288 103 Entered New Map 64 | . . 64 Time Decay 308 | 20 278 10 Lost Part 39 | . 10 29 Squads Dispatched 3 | . 3 . Investigation 1 | . 1 . Extermination . | . . . Reinforcement 2 | . 2 . Assault . | . . . Garrison . | . . . Intercept . | . . . Searches Triggered . | . . . Construction Impeded . | . . . Haulers Reinforced . | . . . Active Scanning Responses . | . . . Cargo Convoy Interrupts . | . . . Stealth | -11 -10 -10 --------- Run | Yrd Mat Min Distress Signals 2 | . 2 . Communications Jammed . | . . . Distress Signals . | . . . Times Spotted 43 | . 25 18 Peak Tracking Total 19 | . 4 19 Tactical Retreats 3 | . 2 1 Traps | -11 -10 -10 ------- Run | Yrd Mat Min Traps Triggered 1 | . 1 . Indirectly . | . . . Trap Hack Attempts . | . . . Triggered . | . . . Disarmed . | . . . Reprogrammed . | . . . Reused . | . . . Traps Extracted . | . . . Installed . | . . . Triggered . | . . . Machines | -11 -10 -10 ---------- Run | Yrd Mat Min Machines Disabled . | . . . Max in Single Turn . | . . . Machines Repaired . | . . . Machines Dismantled . | . . . Machines Sabotaged . | . . . Overloaded Fab Kills . | . . . Hacking | -11 -10 -10 --------- Run | Yrd Mat Min Machines Accessed 5 | . 5 . Terminals 5 | . 5 . Fabricators . | . . . Repair Stations . | . . . Recycling Units . | . . . Scanalyzers . | . . . Garrison Access . | . . . Total Hacks 9 | . 9 . Successful 1 | . 1 . Failed 8 | . 8 . Catastrophic 3 | . 3 . Database Lockouts . | . . . Manual 7 | . 7 . Terminals 9 | . 9 . Fabricators . | . . . Repair Stations . | . . . Recycling Units . | . . . Scanalyzers . | . . . Garrison Access . | . . . Terminal Hacks 1 | . 1 . Locate Traps 1 | . 1 . Fabricator Hacks . | . . . Repair Station Hacks . | . . . Recycling Unit Hacks . | . . . Scanalyzer . | . . . Garrison Access Hacks . | . . . Unauthorized Hacks . | . . . Terminals . | . . . Fabricators . | . . . Repair Stations . | . . . Recycling Units . | . . . Scanalyzers . | . . . Garrison Access . | . . . Data Cores Recovered . | . . . Used . | . . . Hacking Detections 5 | . 5 . Full Trace Events . | . . . Feedback Events . | . . . Feedback Blocked . | . . . Robot Schematics Acquired . | . . . Robots Built . | . . . Authchips . | . . . Time . | . . . Total Robot Build Rating . | . . . Part Schematics Acquired . | . . . Parts Built . | . . . Authchips . | . . . Time . | . . . Total Part Build Rating . | . . . Part Studies Acquired . | . . . Parts Repaired . | . . . Time . | . . . Parts Recycled . | . . . Recycled Matter . | . . . Retrieved Matter . | . . . Retrieved Components . | . . . Parts Scanalyzed . | . . . Part Schematics Acquired . | . . . Parts Damaged . | . . . Bothacking | -11 -10 -10 ------------ Run | Yrd Mat Min Used RIF Installer . | . . . Robots Hacked . | . . . Non-combat . | . . . Combat . | . . . Robot Hacks Applied . | . . . Relay Couplers Released . | . . . Fabnet Peak Effective % . | . . . Robots Rewired . | . . . Allies Hacked . | . . . Hacks Repelled . | . . . Allies | -11 -10 -10 -------- Run | Yrd Mat Min Total Allies . | . . . Largest Group . | . . . Highest-Rated Group . | . . . Highest-Rated Ally . | . . . Total Orders . | . . . Ally Attacks . | . . . Total Damage . | . . . Kills . | . . . Allies Corrupted . | . . . Allies Melted . | . . . Intel | -11 -10 -10 ------- Run | Yrd Mat Min Active Infowar (turns) 753 | 109 644 . Terrain 203 | 109 94 . Structural 477 | . 477 . Seismic 73 | . 73 . Robot Analysis Total . | . . . Derelict Logs Recovered . | . . . Drone Launches . | . . . Drone Recoveries . | . . . Exploration | -11 -10 -10 ------------- Run | Yrd Mat Min Turns Passed 1042 | 190 801 51 Spaces Moved 428 | 97 309 22 Core 4 | 4 . . Treads 406 | 93 309 4 Legs 18 | . . 18 Wheels . | . . . Hover . | . . . Flight . | . . . Fastest Speed 50 | 50 160 120 Average Speed 168 | 155 172 167 Slowest Speed 240 | 160 240 240 Overloaded Moves . | . . . Propulsion Burnouts . | . . . Robots Hopped . | . . . Potential Cave-ins . | . . . Cave-ins Triggered . | . . . Exploration Rate (%) 24 | 4 58 12 Regions Visited 2 Branch Regions 1 Pre-discovered Areas . | . . . Known Exits Taken . | . . . Unknown Exits Taken 2 | 1 1 . Scrap Searched . | . . . Spaces Dug . | . . . Terrain Destroyed . | . . . Melee . | . . . Projectile . | . . . AOE . | . . . Terrain Rammed . | . . . Walls Destroyed . | . . . Machines Disabled . | . . . Actions | -11 -10 -10 --------- Run | Yrd Mat Min Total 621 | 119 467 35 Wait 84 | . 83 1 Move 426 | 96 308 22 Hop . | . . . Pick Up 15 | 8 7 . Fast Attach 6 | 6 . . Attach 3 | 1 . 2 Detach 1 | . . 1 Swap 9 | 1 6 2 Drop 6 | . 2 4 Fire 60 | 7 51 2 Melee . | . . . Ram . | . . . Kick 1 | . . 1 Crush 10 | . 10 . Escape Stasis . | . . . Rewire . | . . . Trap . | . . . Miscellaneous . | . . . Route ------- -11/Scrapyard -10/Materials (discovered 3 exits: [*Mat x2] / [*Min]) -10/Mines History --------- Turn | Location | Event 2 | -11/Scrapyard | Met Revision 17 40 | -11/Scrapyard | Discovered new exit (range 16) 191 | -11/Scrapyard | Entered Materials 306 | -10/Materials | Build established: Mutant 435 | -10/Materials | Discovered new exit (range 3) 549 | -10/Materials | Discovered new exit (range 16) 691 | -10/Materials | Derelicts attacked the area 975 | -10/Materials | Discovered new exit (range 8) 992 | -10/Materials | Entered Mines 993 | -10/Mines | Assembled infested the area 998 | -10/Mines | Assisted by a Guerilla fighting off Assembled 1023 | -10/Mines | Core integrity fell below 50% 1033 | -10/Mines | Core integrity fell below 20% 1043 | -10/Mines | Destroyed by as-46057 with Assembled Maul Last Messages --------------- 01011_ HL-36Q(h): "I'll hold them off! Go on ahead or try to find another way!" 01015_ HV Slug penetrates as-79181. 01015_ as-79181 destroyed. 01015_ K-01 Serf destroyed. 01017_ HL-36Q(h) knocked back. 01017_ HV Slug penetrates as-93622. 01019_ HL-36Q(h) destroyed. 01020_ as-68469 destroyed. 01021_ Structural Scanner destroyed. 01021_ System corrupted by crushing effect (+3). 01021_ Knocked back. 01023_ Ion Engine destroyed. 01023_ System corrupted by crushing effect (+1). 01025_ as-27407 destroyed. 01027_ as-30325 destroyed. 01027_ as-01568 destroyed. 01029_ Aluminum Leg destroyed. 01032_ Knocked back. 01039_ Lgt. Assault Rifle destroyed. Map ----- +----------------------------------------------------+ | ????????????????????????????????????????????????? | | ????????????????????????????????????????????????? | | ????????????????????????????????????????????????? | | ????????????????????????????????????????????????? | | ????????????????????????????????????????????????? | | ????????????????????????????????????????????????? | | ????????????????????????????????????????????????? | | ????????????????????????????????????????????????? | | ????????????????????????????????????????????????? | | ????????????????????????????????????????????????? | | ????????????????????????????????????????????????? | | ????????????????????????????????????????????????? | | ????????????????????????????????????????????????? | | ????????????????????????????????????????????????? | | ????????????????????????????????????????????????? | | ????????????????????????????????????????????????? | | ????????????????????????????????????????????????? | | ????????????????????????????????????????????????? | | ????????????????????????????????????????????????? | | ????????????????????????????????????????????????? | | ????????????????????????????????????????????????? | | ????????????????????????????????????????????????? | | ???????????????????????####?????????????????????? | | ???????????????????????# ?????????????????????? | | ???????????????????????# #?????????????????????? | | ???????????????????????# @##????????????????????? | | ???????????????????????# a ##???????????????????? | | ?????????????????????###aaa #???????????????????? | | ????????????????????## #???????????????????? | | ????????????????????# a ##???????????????????? | | ????????????????????# a##????????????????????? | | ????????????????????## ##????????????????????? | | ?????????????????????## a ##???????????????????? | | ??????????????????????# a #???????????????????? | | ??????????????????????## a #???????????????????? | | ???????????????????##??#a #???????????????????? | | ???????????????????# ### ##???????????????????? | | ????????????????????#"# #????????????????????? | | ??????????????????####%%a ##????????????????????? | | ??????????????????# %=%=% #?????????????????????? | | ??????????? % %!!# #?????????????????????? | | ?????????? % % # #?????????????????????? | | ??????????? ## # #?????????????????????? | | ???????????? ??## ## #?????????????????????? | | ?????????????? ??####### ##????????????????????? | | ?????????????????# [[ #????????????????????? | | ?????????????????# """=""" #????????????????????? | | ?????????????????# """[""" #????????????????????? | | ?????????????????# """ """ #????????????????????? | | ?????????????????# #????????????????????? | +----------------------------------------------------+ Best States ------------- Heat Dissipation 25 Energy Generation 10 Energy Capacity 250 Matter Stores 300 Matter Capacity 300 Sight Range 16 Terrain Scan Range 16 Terrain Scan Density 10 Evasion (%) 55 Recoil Reduction 2 Item Schematics ----------------- None Robot Schematics ------------------ None Fabricated ------------ Nothing Repaired ---------- Nothing Studied --------- None Alien Tech Used ----------------- None Achievements -------------- You Again Challenges ------------ None Game ------ Seed SignalPietyExoskeleton Manual? 0 Play Time 00:12:55 Cumulative 43.2 hours Start 2026.07.24 @ 18:07:40 End 2026.07.24 @ 18:19:00 Sessions 1 Manual Loads 0 Difficulty Rogue Special Mode None Game No. 29 Rogue 29 Adventurer 0 Explorer 0 Win Type - Total 0 Types 0/0/0/0/0/0/0/0/0/0 Lore% 31 Gallery% 32 Achievement% 26 Wizard Run 0 Options --------- Layout 0 ASCII 0 Keyboard 0 Movement Numpad Keybinds 0 Fullscreen 1 Font 24/Smallcaps Map View 76x50 Zoom Use 0% Tactical HUD 1 Map Filters NONE Filters NONE Steam 1 RUN: 8290c4cb-7edd-4275-9624-10bc4ac2307b